[Event "Romanian Superleague 2022"]
[Site "Oradea"]
[Date "2022.09.22"]
[Round "2.6"]
[White "Danilov, Vladimir"]
[Black "Bulau, Andrei-Cristian"]
[Result "1/2-1/2"]
[ECO "D13"]
[WhiteElo "2378"]
[BlackElo "2183"]
[Annotator "TA"]
[PlyCount "78"]
[EventDate "2022.09.21"]
[EventType "team-tourn"]
[EventCountry "ROU"]
[SourceTitle "playchess.com"]
[Source "ChessBase"]
[SourceQuality "1"]
[TimeControl "40/5400+30:1800+30"]

{[%evp 15,78,0,13,0,0,0,0,0,0,18,40,41,44,44,43,40,57,-2,-5,-18,-16,-10,-12,-26,-3,-3,0,0,0,0,0,0,0,0,0,0,0,0,0,0,0,0,0,0,0,-2,0,0,0,0,0,0,0,0,0,-6,-4,-8,0,0,0,0,0,-2,-4]} 1. d4 {[%emt 0:00:03]} d5 {[%emt 0:00:11]} 2. c4 {[%emt 0:00:06]} c6 {[%emt 0:00:05]} 3. Nc3 {[%emt 0:00:13]} Nf6 {[%emt 0:00:07]} 4. cxd5 {[%emt 0:00:15]} cxd5 {[%emt 0:00:06]} 5. Bf4 {[%emt 0:00:07]} Nc6 {[%emt 0:00:09]} 6. e3 {[%emt 0:00:03]} Bf5 {[%emt 0:00:07]} 7. Rc1 {[%emt 0:00:04]} Rc8 {[%emt 0:06:58]} 8. Nf3 {[%emt 0:04:00]} a6 {[%emt 0:09:50]} 9. Ne5 {[%emt 0:08:16] D13: Slav Defence: Exchange variation without ...Bf5.} e6 {[%emt 0:15:01]} 10. Qb3 {[%emt 0:08:08]} Nxe5 $1 {[%emt 0:01:15]} 11. Bxe5 {[%emt 0:01:52]} Qd7 {[%emt 0:02:14]} 12. Be2 {[%emt 0:05:56]} Be7 {[%emt 0:01:33]} 13. O-O {[%emt 0:00:26]} O-O {[%emt 0:00:14][%cal Bh8f8,Bf8c8,Bc8c6][%mdl 32]} 14. Na4 {[%emt 0:03:02]} Rxc1 {[%emt 0:03:50]} 15. Rxc1 {[%emt 0:00:05] [#] Threatens to win with Rc7.} Rc8 {[%emt 0:01:27] Against Rc7} 16. Nc5 {[%emt 0:01:16] [#]} (16. Rxc8+ $1 $14 Qxc8 17. Nc5) 16... Ne4 $146 {[%emt 0:04:38]} ({Predecessor:} 16... Bxc5 17. dxc5 Ne4 18. Bd4 f6 19. f3 Nd6 20. Qd1 Nb5 21. a4 Nxd4 22. exd4 e5 {½-½ (39) Akobian,V (2600)-Bacrot,E (2705) Calatrava 2007}) 17. g4 {[%emt 0:00:43]} Nxc5 {[%emt 0:06:20]} 18. dxc5 {[%emt 0:00:08]} Be4 {[%emt 0:00:49]} 19. Qb6 {[%emt 0:02:24][%cal Oc5c6]} Rc6 {[%emt 0:07:44]} 20. Qa7 {[%emt 0:00:27] The position is equal.} f6 {[%emt 0:01:13]} 21. Bg3 {[%emt 0:00:33]} d4 {[%emt 0:06:25]} 22. exd4 {[%emt 0:25:56]} Qxd4 {[%emt 0:00:15] [#] White must now prevent ...Qd2.} 23. Rc4 {[%emt 0:00:51]} Qd5 {[%emt 0:04:35] Strongly threatening ...Rc8.} 24. Qxb7 {[%emt 0:01:08]} Bxc5 {[%emt 0:03:57]} 25. b3 {[%emt 0:05:08]} a5 {[%emt 0:08:06]} 26. Qa8+ {[%emt 0:12:19]} Kf7 {[%emt 0:00:34]} 27. Qb7+ {[%emt 0:01:35]} Be7 {[%emt 0:01:38][%cal Bc5e7,Be7b4,Bb4c3,Bc3b2][%mdl 32]} 28. Qxc6 {[%emt 0:01:43]} Qxc6 {[%emt 0:00:08]} 29. Rxc6 {[%emt 0:00:05]} Bxc6 {[%emt 0:00:03][%mdl 4096] Endgame KBB-KBB} 30. Bc7 {[%emt 0:00:10]} Bb4 {[%emt 0:01:27]} 31. a3 {[%emt 0:00:40]} Bc3 {[%emt 0:00:49]} 32. Bd6 {[%emt 0:00:16]} Bb2 {[%emt 0:00:53]} 33. Bc7 {[%emt 0:02:53]} Bc3 {[%emt 0:00:29]} 34. Bd6 {[%emt 0:00:06]} Bb2 {[%emt 0:03:07]} 35. Bc7 {[%emt 0:00:17]} a4 {[%emt 0:03:49]} 36. bxa4 {[%emt 0:17:16]} Bxa4 {[%emt 0:00:07]} 37. Bd6 {[%emt 0:00:00]} Ke8 {[%emt 0:00:54]} 38. Bc4 {[%emt 0:00:00]} Kd7 {[%emt 0:01:01]} 39. Bf8 {[%emt 0:00:00]} g6 {[%emt 0:00:20] Weighted Error Value: White=0.05 (flawless) /Black=0.03 (flawless)} 1/2-1/2

[Event "Romanian Superleague 2022"]
[Site "Oradea"]
[Date "2022.09.22"]
[Round "2.7"]
[White "Pranav Vijay"]
[Black "Kozak, Adam"]
[Result "1-0"]
[ECO "C18"]
[WhiteElo "2265"]
[BlackElo "2516"]
[Annotator "TA"]
[PlyCount "81"]
[EventDate "2022.09.21"]
[EventType "team-tourn"]
[EventCountry "ROU"]
[SourceTitle "playchess.com"]
[Source "ChessBase"]
[SourceQuality "1"]
[TimeControl "40/5400+30:1800+30"]

{[%evp 13,81,-6,-14,-35,0,-7,0,0,0,-10,-12,-38,-50,-37,-52,-44,-40,-53,-37,-64,-55,-202,-58,-152,-145,-262,-275,-239,0,-36,0,-267,-276,-585,362,375,372,376,367,378,356,366,463,462,413,387,575,551,624,559,518,523,508,500,567,533,1134,974,1250,1250,1203,1225,1129,918,1712,800,12840,12841,2085,2110]} 1. e4 {[%emt 0:00:05] Sadorra,Julio} e6 {[%emt 0:00:16]} 2. d4 {[%emt 0:00:10]} d5 {[%emt 0:00:09]} 3. Nc3 {[%emt 0:00:09]} Bb4 {[%emt 0:00:07]} 4. e5 {[%emt 0:00:20]} c5 {[%emt 0:00:07]} 5. a3 {[%emt 0:00:08]} Bxc3+ {[%emt 0:00:08]} 6. bxc3 {[%emt 0:00:06]} Qc7 {[%emt 0:00:08]} 7. h4 {[%emt 0:01:46]} Ne7 {[%emt 0:00:21]} 8. h5 {[%emt 0:05:18] C18: French: 3 Nc3 Bb4: Main line: 7 h4 and 7 Qg4.} h6 {[%emt 0:00:07]} 9. Rh4 {[%emt 0:02:51] 9.Rb1 is setting a new trend.} Nbc6 {[%emt 0:15:22]} 10. Nf3 {[%emt 0:03:04] The position is equal.} Bd7 {[%emt 0:04:26]} 11. Rg4 {[%emt 0:03:41]} Nf5 {[%emt 0:08:42] [#]} 12. Qd2 $146 {[%emt 0:02:57]} ({Predecessor:} 12. Bd3 Nce7 13. dxc5 Qxc5 14. Rb4 a5 15. Rxb7 Bc6 16. Rb3 Ba4 17. Rbb1 Qxc3+ 18. Bd2 {½-½ (39) Hou,Y (2663)-Safarli,E (2664) Shamkir 2016 CBM 173 [Sadorra,Julio]}) 12... f6 {[%emt 0:11:04]} 13. exf6 {[%emt 0:21:16]} gxf6 {[%emt 0:00:09]} 14. dxc5 {[%emt 0:01:11]} O-O-O {[%emt 0:03:43]} 15. Rb1 {[%emt 0:12:06]} e5 $1 {[%emt 0:07:46][%cal Be6e5,Be5e4][%mdl 1056] Black has compensation.} 16. Rg6 {[%emt 0:00:39]} (16. Qxd5 $2 Nfe7 17. Qc4 Na5 $19) 16... Rhe8 $1 {[%emt 0:07:47] Strongly threatening ...e4.} 17. Bb5 {[%emt 0:09:53]} (17. Qxd5 $2 e4 18. Nd4 Nfxd4 19. cxd4 Be6 $19) ({White should play} 17. g3 $15) 17... d4 {[%emt 0:16:40]} (17... e4 $1 $19 {[%cal Re4f3]} 18. Nd4 e3 19. fxe3 Rxe3+ 20. Qxe3 Nxe3 21. Bxe3 (21. Bxc6 $2 Nxg2+ 22. Rxg2 Qe5+ 23. Kf2 Bxc6 $17) 21... Qe5) 18. Ng1 {[%emt 0:07:42]} (18. Rxf6 $15 dxc3 19. Qxc3) 18... a6 $17 {[%emt 0:11:02]} 19. Be2 {[%emt 0:11:15]} (19. Bxa6 $17 bxa6 20. Rxf6) 19... e4 $1 $19 {[%emt 0:02:49]} 20. Qf4 {[%emt 0:00:16] Against Qh2. aiming for Qxc7+.} (20. Rxf6 e3 21. Qd3 Qh2 $19) 20... Ne5 $2 {[%emt 0:09:05]} (20... Qa5 $1 $19 {White must now prevent ...d3.} 21. Bg4 (21. Rxf6 $2 Qxc3+ 22. Bd2 Qxc5 $19) 21... Qxc3+ 22. Bd2 (22. Qd2 $2 Qxc5 23. Kf1 e3 $19) 22... Qxc2) 21. Rxf6 $15 {[%emt 0:03:11] Hoping for c6.} d3 {[%emt 0:00:01]} 22. Rxf5 $2 {[%emt 0:01:51][%mdl 8192]} (22. Qxe4 $11 {and White has nothing to worry.} Ng4 23. Qxg4 dxc2 24. Rxb7 $1 Qxb7 25. c6 (25. Rxf5 $2 Qb1 $19)) 22... dxc2 $19 {[%emt 0:00:57]} 23. Rb4 $2 {[%emt 0:00:59]} (23. Rb2 {nothing else works.} Bxf5 24. Qxf5+ Kb8 25. Rxc2 Nd3+ 26. Kf1) 23... Nd3+ $4 {[%emt 0:00:33][%mdl 8192]} (23... Bxf5 $19 {avoids the disaster.} 24. Qxf5+ Kb8) 24. Bxd3 $18 {[%emt 0:00:12]} exd3+ {[%emt 0:00:02] [#]} 25. Kd2 $1 {[%emt 0:00:32]} Bxf5 {[%emt 0:00:45]} 26. Qxf5+ {[%emt 0:02:49]} Kb8 {[%emt 0:00:02] [#]} 27. Qf4 {[%emt 0:01:01]} Rf8 {[%emt 0:01:11]} (27... Re5 $2 28. c6 Rb5 29. Qxc7+ Kxc7 30. Rxb5 axb5 31. cxb7) 28. Qxc7+ {[%emt 0:01:00]} Kxc7 {[%emt 0:00:01]} 29. Nf3 {[%emt 0:00:20]} Rg8 {[%emt 0:00:59]} (29... Rf5 $142 30. Rd4 Rxh5 31. Kxd3 Re8 32. Bf4+ Kc8 33. Kxc2 Rxc5 34. Bxh6 Ra5) 30. Nd4 {[%emt 0:00:24] Threatens to win with Ne6+. White is clearly winning.} Rde8 {[%emt 0:00:29] Inhibits Ne6+.} 31. Kxd3 {[%emt 0:00:33]} Rxg2 {[%emt 0:00:18]} 32. Nxc2 {[%emt 0:00:47]} Rxf2 {[%emt 0:00:26]} 33. Bxh6 {[%emt 0:00:07]} Rd8+ {[%emt 0:00:11]} 34. Nd4 {[%emt 0:00:15]} Rf5 {[%emt 0:01:06]} 35. Ke4 {[%emt 0:00:24]} Rf6 {[%emt 0:00:01] Against Ne6+} 36. Bg7 {[%emt 0:00:54]} Re8+ {[%emt 0:00:16]} 37. Kd5 {[%emt 0:00:01]} Rf1 {[%emt 0:00:20]} 38. h6 {[%emt 0:00:16]} Rh1 {[%emt 0:00:46]} 39. Rb6 {[%emt 0:00:06]} Re3 {[%emt 0:00:28]} 40. Be5+ {[%emt 0:00:00]} Kc8 {[%emt 0:00:00]} 41. Nf5 {[%emt 0:02:15] Weighted Error Value: White=0.52/Black=0.53} 1-0

[Event "Romanian Superleague 2022"]
[Site "Oradea"]
[Date "2022.09.22"]
[Round "2.8"]
[White "Petkov, Momchil"]
[Black "Grigore, George-Gabriel"]
[Result "1/2-1/2"]
[ECO "D02"]
[WhiteElo "2511"]
[BlackElo "2455"]
[Annotator "TA"]
[PlyCount "118"]
[EventDate "2022.09.21"]
[EventType "team-tourn"]
[EventCountry "ROU"]
[SourceTitle "playchess.com"]
[Source "ChessBase"]
[SourceQuality "1"]
[TimeControl "40/5400+30:1800+30"]

{[%evp 12,118,4,2,8,4,12,0,9,-1,21,22,25,18,37,11,4,-5,-19,-4,0,0,0,0,0,-26,-21,-22,-14,-8,14,48,67,56,195,30,16,31,75,-21,0,-50,-54,-41,-45,-121,-120,-147,-121,-200,-160,-188,-185,-185,-186,-222,-33,-33,-33,-33,-33,-34,-18,-34,0,0,0,0,0,0,0,0,8,8,8,8,8,-8,-8,-22,-38,-96,-96,-95,-90,-125,-95,-132,-132,-125,-10,-72,-14,-14,-14,-212,-212,-494,-8,-8,-8,-8,-8,-8,-8,-8,0,0,0]} 1. d4 {[%emt 0:00:14]} Nf6 {[%emt 0:00:23]} 2. Nf3 {[%emt 0:00:20]} d5 {[%emt 0:00:43]} 3. Bf4 {[%emt 0:00:29]} e6 {[%emt 0:00:29]} 4. e3 {[%emt 0:00:23]} Be7 {[%emt 0:00:32]} 5. Nbd2 {[%emt 0:11:04]} c5 {[%emt 0:06:37]} 6. c3 {[%emt 0:00:15]} Nc6 {[%emt 0:00:17]} 7. Ne5 {[%emt 0:03:34]} Nd7 {[%emt 0:13:04] D02: 1 d4 d5 2 Nf3 sidelines, including 2...Nf6 3 g3 and 2...Nf6 3 Bf4.} 8. Nxd7 {[%emt 0:00:28]} Bxd7 {[%emt 0:01:59]} 9. Be2 {[%emt 0:00:12]} O-O {[%emt 0:02:14]} 10. O-O {[%emt 0:00:14]} Qb6 {[%emt 0:10:07]} 11. Rb1 {[%emt 0:00:58] [#]} Rad8 $146 {[%emt 0:01:44][%cal Oe6e5]} ({Predecessor:} 11... e5 12. dxe5 Bf5 13. e4 dxe4 14. Nc4 Qc7 15. Ne3 Rad8 16. Qa4 Bg6 17. Rbd1 Nxe5 {1-0 (37) Krstulovic,A (2413)-Song,R (2485) Veliko Gradiste 2022}) 12. Bd3 {[%emt 0:06:46]} Rfe8 {[%emt 0:04:37]} 13. Qh5 {[%emt 0:17:55]} g6 {[%emt 0:04:31]} 14. Qh6 {[%emt 0:07:26]} Bf8 {[%emt 0:01:05]} 15. Qh4 {[%emt 0:00:05]} e5 {[%emt 0:06:07]} 16. Bg5 {[%emt 0:01:45]} Rc8 {[%emt 0:01:03][%cal Rc5d4]} 17. dxc5 $1 $40 {[%emt 0:08:17][%mdl 128] White mounts an attack.} Qxc5 {[%emt 0:01:06]} 18. e4 {[%emt 0:00:24] exd5 is the strong threat.} d4 {[%emt 0:01:50]} 19. b4 {[%emt 0:09:33]} Qd6 {[%emt 0:07:01]} 20. Nc4 {[%emt 0:00:57]} Qe6 {[%emt 0:05:31]} (20... Qc7 $5 {[%cal Rd4c3]} 21. b5 Na5 $11) 21. b5 {[%emt 0:00:22]} Nb8 {[%emt 0:01:24]} 22. cxd4 $1 {[%emt 0:00:41] White is more active.} ({Of course not} 22. b6 a6 23. cxd4 exd4 $17) 22... exd4 {[%emt 0:03:29]} (22... Rxc4 $2 23. d5 Qxd5 24. exd5 $18) (22... h6 $1 $14 23. Bf6 (23. Bxh6 Rxc4 24. Bxc4 Qxc4 $14) 23... g5 24. Bxg5 hxg5 25. Qxg5+ Qg6 26. Qxg6+ fxg6) 23. Rfc1 $2 {[%emt 0:01:17]} (23. f4 $1 $18 {[%cal Rf4f5] And now f5 would win.} Qg4 24. Qf2) 23... Rc5 {[%emt 0:06:28] aiming for ...h6.} 24. a4 {[%emt 0:09:10]} Rec8 {[%emt 0:02:16]} 25. Bf4 {[%emt 0:01:02]} (25. f4 $1 $16 {[%cal Rf4f5]}) 25... Be8 {[%emt 0:04:14][%cal Bd7e8,Be8f7,Bf7b3][%mdl 32]} (25... a6 $5 {[%cal Ra6b5]} 26. Nb2 Rxc1+ 27. Rxc1 Rxc1+ 28. Bxc1 axb5 29. axb5 Qb3 $11) 26. Qh3 {[%emt 0:11:52]} ({White should play} 26. Bd2 $11) 26... Qxh3 $15 {[%emt 0:03:35]} 27. gxh3 {[%emt 0:00:02]} Nd7 {[%emt 0:05:40]} 28. Bd2 {[%emt 0:02:54]} (28. Rc2 $15) 28... f6 $17 {[%emt 0:01:33]} 29. Be2 {[%emt 0:04:41]} Bf7 {[%emt 0:01:22][%cal Rf7c4]} 30. Na5 {[%emt 0:00:54]} (30. Nb2 $17 {was worth a try.}) 30... Rxc1+ $1 $19 {[%emt 0:00:39]} ({Stronger than} 30... Rc2 31. Bg4 d3 32. Bxd7 $17) 31. Rxc1 {[%emt 0:00:32]} Rxc1+ 32. Bxc1 {[%emt 0:00:01]} Nc5 {[%emt 0:00:25][%csl LRa4,LRe4]} 33. f3 {[%emt 0:01:15]} Nb3 $2 {[%emt 0:03:46]} (33... d3 $19 34. Bf1 b6) 34. Nxb3 $15 {[%emt 0:00:06]} Bxb3 {[%emt 0:00:04][%mdl 4096] Endgame KBB-KBB} 35. a5 $1 {[%emt 0:00:20]} Bb4 {[%emt 0:00:13]} 36. a6 {[%emt 0:00:34]} bxa6 {[%emt 0:00:08]} 37. bxa6 {[%emt 0:00:01]} Bc2 {[%emt 0:01:24]} 38. Bc4+ {[%emt 0:00:03]} Kf8 {[%emt 0:00:05]} (38... Kg7 $5 39. Kf2 $8 f5 $11) 39. Kf2 {[%emt 0:01:06]} Ke7 {[%emt 0:00:26]} 40. Ke2 {[%emt 0:00:00]} Kd6 {[%emt 0:00:00]} 41. Bf4+ {[%emt 0:07:07]} Kc5 {[%emt 0:20:17]} 42. Bd3 {[%emt 0:00:15]} Bxd3+ {[%emt 0:07:51]} 43. Kxd3 $11 {[%emt 0:00:06] KB-KB} Kb5 {[%emt 0:00:07]} 44. Bc7 {[%emt 0:09:03]} Kxa6 {[%emt 0:02:22] Black wants to play ...Bc3.} 45. Bd8 {[%emt 0:00:50]} f5 {[%emt 0:00:36]} 46. Kxd4 {[%emt 0:03:11]} ({Better is} 46. exf5 $15 gxf5 47. Kxd4) 46... fxe4 $1 $17 {[%emt 0:00:34]} 47. fxe4 {[%emt 0:00:04]} Kb7 $1 {[%emt 0:00:50]} 48. h4 {[%emt 0:12:42]} Kc8 {[%emt 0:00:41]} 49. Bf6 {[%emt 0:01:36][%cal Oh4h5]} h5 {[%emt 0:01:52] Hoping for ...a5.} 50. Kc4 {[%emt 0:01:21]} Bf8 {[%emt 0:00:52]} (50... Be1 $17 {Threatens to win with ...Kd7.} 51. Kd5 Kd7) 51. Kb5 {[%emt 0:00:31]} (51. Bd4 $11 {keeps the balance.}) 51... Kd7 {[%emt 0:00:29]} ({Black should try} 51... Kb7 $1 $17) 52. Bd4 $11 {[%emt 0:00:08]} Ke6 {[%emt 0:00:45]} 53. Ka6 $2 {[%emt 0:00:54] [#]} (53. Bxa7 $11 Ke5 54. Bc5) 53... Bd6 $1 $19 {[%emt 0:00:09]} 54. h3 {[%emt 0:00:11] [#]} (54. Kb5 {was forced.} Bxh2 55. Bxa7) 54... Bg3 $2 {[%emt 0:00:29]} (54... Be7 $1 $19 55. Kxa7 Bf6) 55. Kxa7 $11 {[%emt 0:00:06] The position is equal.} Bxh4 {[%emt 0:00:05] White must now prevent ...Bf6.} 56. Kb6 {[%emt 0:01:09]} g5 {[%emt 0:01:17]} 57. Kc5 {[%emt 0:00:13]} g4 {[%emt 0:00:43]} 58. hxg4 {[%emt 0:00:03]} hxg4 {[%emt 0:00:05]} 59. Kc4 {[%emt 0:00:09]} Bf6 {[%emt 0:01:45] Weighted Error Value: White=0.28 (precise) /Black=0.31} 1/2-1/2

[Event "Romanian Superleague 2022"]
[Site "Oradea"]
[Date "2022.09.22"]
[Round "2.9"]
[White "Istratescu, Andrei"]
[Black "Bonte, Andrei-Mihai"]
[Result "1/2-1/2"]
[ECO "C18"]
[WhiteElo "2408"]
[BlackElo "2339"]
[Annotator "TA"]
[PlyCount "45"]
[EventDate "2022.09.21"]
[EventType "team-tourn"]
[EventCountry "ROU"]
[SourceTitle "playchess.com"]
[Source "ChessBase"]
[SourceQuality "1"]
[TimeControl "40/5400+30:1800+30"]

{[%evp 29,45,0,0,0,0,12,31,62,173,170,135,0,0,0,0,0,0,-118]} 1. e4 {[%emt 0:00:05]} e6 {[%emt 0:00:11]} 2. d4 {[%emt 0:00:18]} d5 {[%emt 0:00:08]} 3. Nc3 {[%emt 0:00:06]} Bb4 {[%emt 0:00:15]} 4. e5 {[%emt 0:00:23]} c5 {[%emt 0:00:07]} 5. a3 {[%emt 0:00:08]} Bxc3+ {[%emt 0:00:07]} 6. bxc3 {[%emt 0:00:05]} Ne7 {[%emt 0:00:47]} 7. Qg4 {[%emt 0:01:01]} Qc7 {[%emt 0:00:21]} 8. Qxg7 {[%emt 0:04:44]} Rg8 {[%emt 0:00:07]} 9. Qxh7 {[%emt 0:00:02]} cxd4 {[%emt 0:00:06]} 10. Ne2 {[%emt 0:02:23]} dxc3 {[%emt 0:06:36]} 11. f4 {[%emt 0:00:46]} Nbc6 {[%emt 0:00:25]} 12. Qd3 {[%emt 0:03:03]} d4 {[%emt 0:00:06]} 13. Nxd4 {[%emt 0:04:52]} Nxd4 {[%emt 0:00:19]} 14. Qxd4 {[%emt 0:00:31]} Bd7 {[%emt 0:00:47]} 15. Rb1 {[%emt 0:30:52]} Nf5 {[%emt 0:05:11]} 16. Qf2 {[%emt 0:02:10] C18: French: 3 Nc3 Bb4: Main line: 7 h4 and 7 Qg4.} Bc6 {[%emt 0:10:29]} 17. Rg1 {[%emt 0:47:31]} O-O-O {[%emt 1:12:58]} 18. Qxa7 {[%emt 0:00:30] White is slightly better.} Nd4 {[%emt 0:00:30]} (18... Qe7 $14) 19. Bd3 $18 {[%emt 0:00:30] Black must now prevent Be3.} Bxg2 {[%emt 0:00:30] [#] ...Nf3+ is the strong threat.} 20. Be3 $146 {[%emt 0:00:30]} (20. Kf2 $1 $16 Nc6 21. Qa8+ Kd7 22. Qxb7) ({Predecessor:} 20. Qa8+ Kd7 21. Qa4+ Kc8 22. Qa8+ Kd7 23. Qa4+ {½-½ (23) Riff,J (2507)-Cornette,M (2573) Le Port Marly 2009}) 20... Nf3+ $11 {[%emt 0:00:30] The position is equal.} 21. Kf2 Nxg1 {[%emt 0:00:30]} 22. Rxg1 {[%emt 0:01:00] Dancing on a razor blade.} Qc6 {[%emt 0:00:30]} 23. Qc5 {[%emt 0:00:30] Weighted Error Value: White=0.26 (precise) /Black=0.23 (precise)} (23. Be2 $11) 1/2-1/2

[Event "Romanian Superleague 2022"]
[Site "Oradea"]
[Date "2022.09.22"]
[Round "2.10"]
[White "Ognean, Mihnea-Ionut"]
[Black "Vedmediuc, Serghei"]
[Result "1/2-1/2"]
[ECO "B47"]
[WhiteElo "2303"]
[BlackElo "2430"]
[Annotator "TA"]
[PlyCount "120"]
[EventDate "2022.09.21"]
[EventType "team-tourn"]
[EventCountry "ROU"]
[SourceTitle "playchess.com"]
[Source "ChessBase"]
[SourceQuality "1"]
[TimeControl "40/5400+30:1800+30"]

{[%evp 9,120,6,30,29,22,15,16,26,18,26,20,19,27,15,28,0,0,-2,0,0,0,0,0,0,0,1,8,-25,-13,-14,-23,-18,-8,-5,-5,-13,-9,-13,-5,-5,-17,-14,0,0,0,0,0,-10,-8,-9,-8,-8,-4,-3,-4,-7,0,-6,0,0,0,0,0,0,0,0,0,-7,-7,-7,0,0,0,-7,-7,-8,0,-8,-8,-8,-8,-8,-8,-8,-8,-8,-8,-8,-8,-20,-20,-20,-20,-20,-20,-20,-20,-20,-20,-20,-20,-20,-20,-20,-13,-20,-20,-20,-8,-8,-8,-8,-8]} 1. e4 {[%emt 0:00:06]} c5 {[%emt 0:00:12]} 2. Nf3 {[%emt 0:00:28][%cal Bg1f3,Bf3d4,Bd4b5][%mdl 32]} e6 {[%emt 0:00:34]} 3. d4 {[%emt 0:00:31]} cxd4 {[%emt 0:00:09]} 4. Nxd4 {[%emt 0:00:03]} Nc6 {[%emt 0:00:09]} 5. Nc3 {[%emt 0:00:38]} Qc7 {[%emt 0:00:19]} 6. Qd3 {[%emt 0:00:11] B47: Sicilian: Taimanov: 5 Nc3 Qc7 6 f4, 6 g3 and 6 Be2.} Nf6 {[%emt 0:02:50]} 7. Ndb5 {[%emt 0:00:29]} Qb8 {[%emt 0:00:03]} 8. Qg3 {[%emt 0:00:14] [#] Strongly threatening Nc7+.} d6 $1 {[%emt 0:00:08]} 9. Be3 $1 {[%emt 0:00:12] And now 0-0-0 would win.} a6 {[%emt 0:00:09]} 10. Nd4 {[%emt 0:00:04]} Be7 {[%emt 0:00:07]} 11. f4 {[%emt 0:03:34]} O-O {[%emt 0:00:23]} 12. Bd3 {[%emt 0:00:34]} Nh5 {[%emt 0:03:50]} 13. Qf2 {[%emt 0:16:26]} Nxd4 {[%emt 0:01:56]} 14. Bxd4 {[%emt 0:00:07]} Nxf4 {[%emt 0:00:06]} 15. Qxf4 {[%emt 0:00:12] [#] Threatens to win with e5.} e5 {[%emt 0:00:06]} 16. Qf2 {[%emt 0:06:03] Hoping for Nd5.} exd4 {[%emt 0:00:10]} 17. Nd5 {[%emt 0:00:03]} Bg5 {[%emt 0:00:10] [#]} 18. h4 $146 {[%emt 0:05:03]} ({Predecessor:} 18. O-O Be6 19. Qxd4 Qa7 20. Qxa7 Rxa7 21. a4 Bxd5 22. exd5 a5 23. Rae1 g6 24. Re4 {½-½ (95) Tari,A (2593)-Korobov,A (2711) Khanty-Mansiysk 2017}) 18... Be3 {[%emt 0:56:36]} 19. Nxe3 {[%emt 0:05:40]} dxe3 {[%emt 0:01:37]} 20. Qxe3 {[%emt 0:00:04]} Bg4 {[%emt 0:01:16] The position is equal.} 21. O-O {[%emt 0:31:28]} Qd8 {[%emt 0:01:21]} 22. g3 {[%emt 0:03:00]} Rc8 {[%emt 0:04:12]} 23. Rf4 {[%emt 0:04:32]} Be6 {[%emt 0:03:43]} 24. e5 {[%emt 0:02:52]} dxe5 {[%emt 0:02:59]} 25. Qxe5 {[%emt 0:00:04]} Qb6+ {[%emt 0:06:30]} 26. Qd4 {[%emt 0:05:04]} Qc7 {[%emt 0:04:40]} 27. Kh2 {[%emt 0:05:48]} Rfd8 {[%emt 0:00:42]} 28. Qe4 {[%emt 0:01:03]} g6 {[%emt 0:00:02]} 29. Qe3 {[%emt 0:00:09] Against Qb6} Rd5 {[%emt 0:03:21]} 30. Re1 {[%emt 0:02:22]} Rcd8 {[%emt 0:00:50]} 31. a3 {[%emt 0:00:59]} a5 {[%emt 0:01:35]} 32. Re2 {[%emt 0:01:46]} Rh5 {[%emt 0:01:52]} 33. Rd4 {[%emt 0:03:53]} Rxd4 {[%emt 0:00:42]} 34. Qxd4 {[%emt 0:00:03]} Rd5 {[%emt 0:00:47]} 35. Qf6 {[%emt 0:00:21]} Qd6 {[%emt 0:00:50]} 36. Rf2 {[%emt 0:02:41]} b6 {[%emt 0:01:15]} 37. Bc4 {[%emt 0:00:51]} Rd2 {[%emt 0:00:31]} 38. Bd3 {[%emt 0:00:46]} Rd1 {[%emt 0:01:05][%cal Oe6d5]} 39. Rf1 $1 {[%emt 0:00:10] Chess con chili.} Rd2+ {[%emt 0:00:28]} 40. Rf2 {[%emt 0:00:00]} Rd1 {[%emt 0:00:00][%cal Oe6d5]} 41. Rf1 {[%emt 0:02:35]} Rxf1 {[%emt 0:19:27]} 42. Qxf1 $11 {[%emt 0:00:05][%mdl 4096] Endgame KQB-KQB} Qe5 {[%emt 0:00:07]} 43. c3 {[%emt 0:01:41]} Qe3 {[%emt 0:03:52]} 44. Qe2 {[%emt 0:01:01]} (44. Ba6 {seems wilder.} h6 45. Qf4 Qe1 46. Qd4) 44... Qxe2+ {[%emt 0:00:47]} 45. Bxe2 {[%emt 0:00:03] KB-KB} Kg7 {[%emt 0:00:08]} 46. Kg2 {[%emt 0:03:32]} Kf6 {[%emt 0:00:07]} 47. Kf3 {[%emt 0:00:21]} Ke5 {[%emt 0:00:07]} 48. b4 {[%emt 0:01:48]} f5 {[%emt 0:01:04]} 49. bxa5 {[%emt 0:00:48]} bxa5 {[%emt 0:00:07]} 50. Ke3 {[%emt 0:00:15]} h6 {[%emt 0:00:10][%cal Bh7h6,Bh6g5,Bg5f4][%mdl 32]} 51. Bf3 {[%emt 0:02:31]} Bc4 {[%emt 0:00:42]} 52. Bd1 {[%emt 0:00:11]} g5 {[%emt 0:00:08]} 53. hxg5 {[%emt 0:00:03]} hxg5 {[%emt 0:00:05]} 54. Bf3 {[%emt 0:01:26]} f4+ {[%emt 0:00:33]} 55. gxf4+ {[%emt 0:00:03]} gxf4+ {[%emt 0:00:04]} 56. Kd2 $1 {[%emt 0:03:19]} Bd5 {[%emt 0:01:20]} 57. Bd1 {[%emt 0:00:15]} Be4 {[%emt 0:06:10]} 58. Be2 {[%emt 0:00:14]} f3 {[%emt 0:00:45]} 59. Bxf3 {[%emt 0:00:04]} Bxf3 {[%emt 0:00:09]} 60. Kc1 {[%emt 0:00:05]} Kd5 {[%emt 0:02:21] An interesting draw.  Weighted Error Value: White=0.03 (flawless) /Black=0.03 (flawless)} 1/2-1/2